fUSD/lending_fUSD_20241221
["ID","MTS","AMOUNT","RATE_DAILY","PERIOD"]
[346187986,1734769853156,-500.0,0.00019618,2]
[346187987,1734769853165,-500.0,0.00019618,2]
[346187988,1734769853174,-500.0,0.00019618,2]
[346187989,1734769853183,-500.0,0.00019618,2]
[346187990,1734769853193,-500.0,0.00019618,2]
[346187991,1734769853202,-500.0,0.00019618,2]
[346187992,1734769853211,-500.0,0.00019618,2]
[346187993,1734769853221,-500.0,0.00019618,2]
[346187994,1734769853230,-500.0,0.00019618,2]
[346187995,1734769853241,-500.0,0.00019618,2]
[346187996,1734769853251,-500.0,0.00019618,2]
[346187997,1734769853260,-500.0,0.00019618,2]
[346187998,1734769853269,-224.32,0.00019618,2]
[346188000,1734769853278,-500.0,0.00019618,2]
[346188001,1734769853288,-499.30868463,0.00019618,2]
[346188002,1734769853298,-500.0,0.00019618,2]
[346188003,1734769853307,-500.0,0.00019618,2]
[346188004,1734769853316,-503.68221905,0.00019618,2]
[346188005,1734769853324,-500.0,0.00019618,2]
[346188006,1734769853333,-500.0,0.00019618,2]
[346188007,1734769853342,-500.0,0.00019618,2]
[346188008,1734769853351,-500.0,0.00019618,2]
[346188009,1734769853360,-500.0,0.00019618,2]
[346188010,1734769853369,-500.0,0.00019618,2]
[346188011,1734769853378,-500.0,0.00019618,2]
[346188012,1734769853387,-500.0,0.00019618,2]
[346188013,1734769853397,-500.0,0.00019618,2]
[346188014,1734769853407,-500.0,0.00019618,2]
[346188015,1734769853418,-500.0,0.00019618,2]
[346188016,1734769853427,-500.0,0.00019618,2]
[346188017,1734769853438,-500.0,0.00019618,2]
[346188018,1734769853447,-596.19,0.00019618,2]
[346188019,1734769853457,-151.0,0.00019618,2]
[346188020,1734769853468,-500.0,0.00019618,2]
[346188021,1734769853477,-151.0,0.00019618,2]
[346188022,1734769853487,-151.747205,0.00019618,2]
[346188023,1734769853497,-500.0,0.00019618,2]
[346188024,1734769853506,-500.0,0.00019618,2]
[346188025,1734769853516,-500.0,0.00019618,2]
[346188026,1734769853525,-500.0,0.00019618,2]
[346188027,1734769853535,-500.0,0.00019618,2]
[346188028,1734769853545,-154.494808,0.00019618,2]
[346188029,1734769853554,-500.0,0.00019618,2]
[346188030,1734769853563,-500.0,0.00019618,2]
[346188031,1734769853572,-151.0,0.00019618,2]
[346188032,1734769853581,-500.0,0.00019618,2]
[346188034,1734769853591,-151.0,0.00019618,2]
[346188035,1734769853600,-151.0,0.00019618,2]
[346188036,1734769853610,-500.0,0.00019618,2]
[346188037,1734769853619,-500.0,0.00019618,2]
[346188038,1734769853629,-500.0,0.00019618,2]
[346188039,1734769853638,-151.0,0.00019618,2]
[346188040,1734769853647,-500.0,0.00019618,2]
[346188041,1734769853656,-500.0,0.00019618,2]
[346188042,1734769853665,-500.0,0.00019618,2]
[346188043,1734769853675,-500.0,0.00019618,2]
[346188044,1734769853684,-500.0,0.00019618,2]
[346188045,1734769853693,-500.0,0.00019618,2]
[346188046,1734769853704,-500.0,0.00019618,2]
[346188047,1734769853715,-500.0,0.00019618,2]
[346188048,1734769853725,-151.0,0.00019618,2]
[346188049,1734769853734,-500.0,0.00019618,2]
[346188050,1734769853744,-500.0,0.00019618,2]
[346188051,1734769853753,-505.05026395,0.00019618,2]
[346188052,1734769853762,-500.0,0.00019618,2]
[346188053,1734769853771,-500.0,0.00019618,2]
[346188054,1734769853781,-500.0,0.00019618,2]
[346188055,1734769853790,-500.0,0.00019618,2]
[346188056,1734769853799,-500.0,0.00019618,2]
[346188057,1734769853808,-500.0,0.00019618,2]
[346188058,1734769853817,-151.0,0.00019618,2]
[346188059,1734769853826,-500.0,0.00019618,2]
[346188060,1734769853835,-267.2684689,0.00019618,2]
[346188061,1734769853844,-151.0,0.00019618,2]
[346188062,1734769853853,-500.0,0.00019618,2]
[346188063,1734769853862,-151.0,0.00019618,2]
[346188064,1734769853871,-500.0,0.00019618,2]
[346188065,1734769853880,-500.0,0.00019618,2]
[346188066,1734769853890,-500.0,0.00019618,2]
[346188067,1734769853899,-500.0,0.00019618,2]
[346188068,1734769853908,-500.0,0.00019618,2]
[346188069,1734769853918,-500.0,0.00019618,2]
[346188070,1734769853927,-500.0,0.00019618,2]
[346188071,1734769853937,-508.3243357,0.00019618,2]
[346188072,1734769853947,-500.0,0.00019618,2]
[346188073,1734769853958,-500.0,0.00019618,2]
[346188074,1734769853967,-500.0,0.00019618,2]
[346188075,1734769853977,-500.0,0.00019618,2]
[346188076,1734769853986,-500.0,0.00019618,2]
[346188077,1734769853996,-151.0,0.00019618,2]
[346188078,1734769854005,-500.0,0.00019618,2]
[346188079,1734769854015,-419.54662613,0.00019618,2]
[346188080,1734769854024,-500.0,0.00019618,2]
[346188081,1734769854035,-500.0,0.00019618,2]
[346188082,1734769854049,-500.0,0.00019618,2]
[346188084,1734769854059,-500.0,0.00019618,2]
[346188085,1734769854069,-560.41,0.00019618,2]
[346188086,1734769854079,-500.0,0.00019618,2]
[346188087,1734769854089,-500.0,0.00019618,2]
[346188088,1734769854097,-500.0,0.00019618,2]
[346188089,1734769854106,-642.48750791,0.00019618,2]
[346188090,1734769854116,-500.0,0.00019618,2]
[346188091,1734769854125,-500.0,0.00019618,2]
[346188092,1734769854135,-500.0,0.00019618,2]
[346188093,1734769854144,-500.0,0.00019618,2]
[346188094,1734769854153,-500.0,0.00019618,2]
[346188095,1734769854162,-500.0,0.00019618,2]
[346188096,1734769854172,-500.0,0.00019618,2]
[346188097,1734769854181,-412.9920032,0.00019618,2]
[346188098,1734769854190,-500.0,0.00019618,2]
[346188099,1734769854201,-500.0,0.00019618,2]
[346188100,1734769854210,-500.0,0.00019618,2]
[346188101,1734769854220,-583.9,0.00019618,2]
[346188102,1734769854229,-500.0,0.00019618,2]
[346188103,1734769854239,-162.562606,0.00019618,2]
[346188104,1734769854250,-162.562606,0.00019618,2]
[346188105,1734769854259,-500.0,0.00019618,2]
[346188106,1734769854268,-500.0,0.00019618,2]
[346188107,1734769854278,-500.0,0.00019618,2]
[346188108,1734769854287,-500.0,0.00019618,2]
[346188109,1734769854297,-500.0,0.00019618,2]
[346188110,1734769854306,-551.24,0.00019618,2]
[346188111,1734769854316,-500.0,0.00019618,2]
[346188112,1734769854326,-500.0,0.00019618,2]
[346188113,1734769854336,-500.0,0.00019618,2]
[346188114,1734769854345,-500.0,0.00019618,2]
[346188115,1734769854355,-500.0,0.00019618,2]
[346188116,1734769854365,-500.0,0.00019618,2]
[346188117,1734769854374,-500.0,0.00019618,2]
[346188118,1734769854384,-500.0,0.00019618,2]
[346188119,1734769854394,-500.0,0.00019618,2]
[346188120,1734769854403,-500.0,0.00019618,2]
[346188121,1734769854413,-537.49622392,0.00019618,2]
[346188122,1734769854422,-500.0,0.00019618,2]
[346188123,1734769854432,-503.70004453,0.00019618,2]
[346188124,1734769854442,-500.0,0.00019618,2]
[346188125,1734769854451,-500.0,0.00019618,2]
[346188126,1734769854460,-500.0,0.00019618,2]
[346188127,1734769854469,-500.0,0.00019618,2]
[346188129,1734769854479,-500.0,0.00019618,2]
[346188130,1734769854488,-500.0,0.00019618,2]
[346188131,1734769854500,-997.17,0.00019618,2]
[346188132,1734769854510,-500.0,0.00019618,2]
[346188133,1734769854519,-818.84367,0.00019618,2]
[346188134,1734769854529,-500.0,0.00019618,2]
[346188135,1734769854539,-818.84367,0.00019618,2]
[346188136,1734769854548,-154.619945,0.00019618,2]
[346188137,1734769854558,-151.0,0.00019618,2]
[346188138,1734769854568,-500.0,0.00019618,2]
[346188139,1734769854577,-500.0,0.00019618,2]
[346188140,1734769854587,-500.0,0.00019618,2]
[346188141,1734769854597,-685.72,0.00019618,2]
[346188142,1734769854606,-546.544357,0.00019618,2]
[346188143,1734769854616,-500.0,0.00019618,2]
[346188144,1734769854625,-500.0,0.00019618,2]
[346188145,1734769854635,-546.544357,0.00019618,2]
[346188146,1734769854644,-500.0,0.00019618,2]
[346188147,1734769854654,-500.0,0.00019618,2]
[346188148,1734769854663,-151.0,0.00019618,2]
[346188149,1734769854672,-500.0,0.00019618,2]
[346188150,1734769854682,-500.0,0.00019618,2]
[346188151,1734769854692,-706.79,0.00019618,2]
[346188152,1734769854701,-151.0,0.00019618,2]
[346188153,1734769854711,-500.0,0.00019618,2]
[346188154,1734769854720,-8621.90081,0.00019618,2]
[346188155,1734769854730,-500.0,0.00019618,2]
[346188156,1734769854739,-500.0,0.00019618,2]
[346188157,1734769854749,-8621.90081,0.00019618,2]
[346188159,1734769854759,-504.39229834,0.00019618,2]
[346188160,1734769854769,-1349.74,0.00019618,2]
[346188161,1734769854778,-189.290281,0.00019618,2]
[346188162,1734769854787,-597.67299024,0.00019618,2]
[346188163,1734769854797,-500.0,0.00019618,2]
[346188164,1734769854807,-189.290281,0.00019618,2]
[346188165,1734769854816,-151.0,0.00019618,2]
[346188166,1734769854825,-500.0,0.00019618,2]
[346188167,1734769854834,-1612.89,0.00019618,2]
[346188168,1734769854845,-500.0,0.00019618,2]
[346188169,1734769854855,-500.0,0.00019618,2]
[346188170,1734769854865,-500.0,0.00019618,2]
[346188171,1734769854875,-346.60064315,0.00019618,2]
[346188172,1734769854884,-151.0,0.00019618,2]
[346188173,1734769854894,-2066.3,0.00019618,2]
[346188174,1734769854903,-500.0,0.00019618,2]
[346188175,1734769854913,-500.0,0.00019618,2]
[346188176,1734769854922,-152.365062,0.00019618,2]
[346188177,1734769854932,-500.0,0.00019618,2]
[346188178,1734769854941,-500.0,0.00019618,2]
[346188179,1734769854951,-152.365062,0.00019618,2]
[346188180,1734769854960,-500.0,0.00019618,2]
[346188181,1734769854969,-500.0,0.00019618,2]
[346188182,1734769854979,-615.9,0.00019618,2]
[346188183,1734769854988,-1184.33,0.00019618,2]
[346188184,1734769854998,-500.0,0.00019618,2]
[346188185,1734769855007,-500.0,0.00019618,2]
[346188186,1734769855017,-500.0,0.00019618,2]
[346188187,1734769855026,-2103.98,0.00019618,2]
[346188188,1734769855036,-151.0,0.00019618,2]
[346188190,1734769855050,-151.0,0.00019618,2]
[346188191,1734769855060,-151.0,0.00019618,2]
[346188192,1734769855069,-500.0,0.00019618,2]
[346188193,1734769855079,-1834.81,0.00019618,2]
[346188194,1734769855089,-151.0,0.00019618,2]
[346188195,1734769855098,-151.0,0.00019618,2]
[346188196,1734769855108,-512.05270958,0.00019618,2]
[346188197,1734769855117,-500.0,0.00019618,2]
[346188198,1734769855128,-500.0,0.00019618,2]
[346188199,1734769855138,-4676.27,0.00019618,2]
[346188200,1734769855148,-500.0,0.00019618,2]
[346188201,1734769855158,-500.0,0.00019618,2]
[346188202,1734769855168,-500.0,0.00019618,2]
[346188203,1734769855177,-500.0,0.00019618,2]
[346188204,1734769855187,-500.0,0.00019618,2]
[346188205,1734769855197,-3208.63,0.00019618,2]
[346188206,1734769855207,-151.0,0.00019618,2]
[346188207,1734769855217,-151.0,0.00019618,2]
[346188208,1734769855226,-500.0,0.00019618,2]
[346188209,1734769855236,-500.0,0.00019618,2]
[346188210,1734769855246,-500.0,0.00019618,2]
[346188211,1734769855256,-151.0,0.00019618,2]
[346188212,1734769855266,-500.0,0.00019618,2]
[346188213,1734769855275,-208.35921,0.00019618,2]
[346188214,1734769855286,-500.0,0.00019618,2]
[346188215,1734769855296,-500.0,0.00019618,2]
[346188216,1734769855306,-208.35921,0.00019618,2]
[346188217,1734769855315,-1665.688369,0.00019618,2]
[346188218,1734769855325,-500.0,0.00019618,2]
[346188220,1734769855335,-1665.688369,0.00019618,2]
[346188221,1734769855346,-500.0,0.00019618,2]
[346188222,1734769855355,-2622.64,0.00019618,2]
[346188223,1734769855365,-729.95,0.00019618,2]
[346188224,1734769855374,-500.0,0.00019618,2]
[346188225,1734769855383,-500.0,0.00019618,2]
[346188226,1734769855393,-1522.05,0.00019618,2]
[346188227,1734769855402,-151.0,0.00019618,2]
[346188228,1734769855413,-151.0,0.00019618,2]
[346188229,1734769855423,-500.0,0.00019618,2]
[346188230,1734769855433,-151.0,0.00019618,2]
[346188231,1734769855444,-151.0,0.00019618,2]
[346188232,1734769855454,-540.73985475,0.00019618,2]
[346188233,1734769855465,-500.0,0.00019618,2]
[346188234,1734769855475,-500.0,0.00019618,2]
[346188235,1734769855486,-297.223263,0.00019618,2]
[346188236,1734769855496,-500.0,0.00019618,2]
[346188237,1734769855505,-500.0,0.00019618,2]
[346188238,1734769855515,-297.223263,0.00019618,2]
[346188239,1734769855525,-5000.0,0.00019618,10]
[346188240,1734769855535,-872.79,0.00019618,2]
[346188241,1734769855546,-500.0,0.00019618,2]
[346188242,1734769855556,-500.0,0.00019618,2]
[346188243,1734769855567,-500.0,0.00019618,2]
[346188244,1734769855577,-500.0,0.00019618,2]
[346188245,1734769855587,-554.69,0.00019618,2]
[346188246,1734769855596,-500.0,0.00019618,2]
[346188247,1734769855606,-489.94290881,0.00019618,2]
[346188249,1734769855616,-1740.06,0.00019618,2]
[346188250,1734769855627,-500.0,0.00019618,2]
[346188251,1734769855636,-500.0,0.00019618,2]
[346188252,1734769855646,-500.0,0.00019618,2]
[346188253,1734769855656,-505.72458335,0.00019618,2]
[346188254,1734769855666,-500.0,0.00019618,2]
[346188255,1734769855676,-8313.36,0.00019618,2]
[346188256,1734769855686,-500.0,0.00019618,2]
[346188257,1734769855696,-500.0,0.00019618,2]
[346188258,1734769855705,-807.11,0.00019619,2]
[346188259,1734769855716,-1622.3,0.00019619,2]
[346188260,1734769855726,-2408.36,0.00019619,2]
[346188261,1734769855735,-1853.05,0.00019619,2]
[346188262,1734769855746,-500.0,0.00019619,2]
[346188263,1734769855755,-500.0,0.00019619,2]
[346188264,1734769855765,-599.34,0.00019619,2]
[346188265,1734769855775,-1437.49,0.00019619,2]
[346188266,1734769855784,-2962.33,0.00019619,2]
[346188267,1734769855795,-1377.35,0.00019619,2]
[346188268,1734769855806,-4029.78,0.00019619,2]
[346188269,1734769855815,-1342.55,0.00019619,2]
[346188270,1734769855826,-3000.0,0.0001965,2]
[346188271,1734769855835,-150.0,0.00019652,4]
[346188272,1734769855845,-150.0,0.00019652,4]
[346188273,1734769855855,-150.0,0.00019652,4]
[346188274,1734769855865,-150.0,0.00019652,4]
[346188275,1734769855875,-150.0,0.00019652,4]
[346188277,1734769855884,-287.9718038,0.00019657,2]
[346188278,1734769855894,-186.38008742,0.0001966,2]
[346188279,1734769855903,-851.9399638,0.00019688,2]
[346188280,1734769855916,-345.0,0.000197,2]
[346188281,1734769855938,-118275.54732609,0.0001971,2]
[346188282,1734769855948,-1079.48,0.0001971,2]
[346188283,1734769855957,-500.0,0.00019718,2]
[346188284,1734769855968,-896.14,0.00019718,2]
[346188285,1734769855979,-500.0,0.00019718,2]
[346188286,1734769855990,-560.27,0.00019718,2]
[346188287,1734769856001,-518.18,0.00019718,2]
[346188288,1734769856012,-500.0,0.00019718,2]
[346188289,1734769856022,-748.73,0.00019718,2]
[346188290,1734769856032,-771.79,0.00019718,2]
[346188291,1734769856045,-500.0,0.00019718,2]
[346188292,1734769856055,-1095.4,0.00019718,2]
[346188293,1734769856065,-500.0,0.00019718,2]
[346188294,1734769856075,-1543.7,0.00019718,2]
[346188295,1734769856085,-684.8,0.00019718,2]
[346188296,1734769856095,-836.87,0.00019718,2]
[346188297,1734769856105,-500.0,0.00019718,2]
[346188298,1734769856116,-500.0,0.00019718,2]
[346188299,1734769856126,-500.0,0.00019718,2]
[346188300,1734769856135,-934.15,0.00019718,2]
[346188301,1734769856146,-500.0,0.00019718,2]
[346188302,1734769856156,-719.72,0.00019718,2]
[346188303,1734769856165,-506.19,0.00019718,2]
[346188304,1734769856175,-521.06,0.00019718,2]
[346188305,1734769856185,-832.43,0.00019718,2]
[346188306,1734769856194,-671.61,0.00019718,2]
[346188308,1734769856205,-653.84,0.00019718,2]
[346188309,1734769856215,-880.14,0.00019718,2]
[346188310,1734769856224,-692.41,0.00019718,2]
[346188311,1734769856234,-1000.59,0.00019718,2]
[346188312,1734769856244,-1101.22,0.00019718,2]
[346188313,1734769856255,-657.85,0.00019718,2]
[346188314,1734769856264,-500.0,0.00019718,2]
[346188315,1734769856274,-500.0,0.00019718,2]
[346188316,1734769856284,-774.6,0.00019718,2]
[346188317,1734769856294,-500.0,0.00019718,2]
[346188318,1734769856304,-500.0,0.00019718,2]
[346188319,1734769856314,-954.05,0.00019718,2]
[346188320,1734769856324,-1138.7,0.00019718,2]
[346188321,1734769856334,-500.0,0.00019718,2]
[346188322,1734769856344,-929.19,0.00019718,2]
[346188323,1734769856354,-754.06,0.00019718,2]
[346188324,1734769856364,-500.0,0.00019718,2]
[346188325,1734769856375,-673.28,0.00019718,2]
[346188326,1734769856385,-581.25,0.00019718,2]
[346188327,1734769856395,-675.51,0.00019718,2]
[346188328,1734769856405,-1127.19,0.00019718,2]
[346188329,1734769856414,-500.0,0.00019718,2]
[346188330,1734769856424,-1260.74,0.00019718,2]
[346188331,1734769856433,-503.55,0.00019718,2]
[346188332,1734769856443,-1143.47,0.00019718,2]
[346188333,1734769856453,-829.64,0.00019718,2]
[346188334,1734769856463,-500.0,0.00019718,2]
[346188335,1734769856473,-500.0,0.00019718,2]
[346188336,1734769856483,-500.0,0.00019718,2]
[346188337,1734769856492,-500.0,0.00019718,2]
[346188338,1734769856503,-500.0,0.00019718,2]
[346188339,1734769856512,-766.03,0.00019718,2]
[346188340,1734769856522,-551.84,0.00019718,2]
[346188341,1734769856532,-500.0,0.00019718,2]
[346188342,1734769856542,-508.5,0.00019718,2]
[346188343,1734769856552,-749.47,0.00019718,2]
[346188344,1734769856561,-500.0,0.00019718,2]
[346188345,1734769856571,-1147.83,0.00019718,2]
[346188346,1734769856581,-959.63,0.00019718,2]
[346188347,1734769856591,-895.71,0.00019718,2]
[346188348,1734769856600,-869.86,0.00019718,2]
[346188349,1734769856611,-1036.93,0.00019718,2]
[346188350,1734769856822,-1138.3,0.00019718,2]
[346188351,1734769856832,-500.0,0.00019718,2]
[346188352,1734769856842,-500.0,0.00019718,2]
[346188353,1734769856851,-500.0,0.00019718,2]
[346188354,1734769856861,-1010.11,0.00019718,2]
[346188355,1734769856871,-717.94,0.00019718,2]
[346188356,1734769856881,-866.44,0.00019718,2]
[346188357,1734769856891,-500.0,0.00019719,2]
[346188358,1734769856900,-692.41,0.00019719,2]
[346188359,1734769856910,-503.965308,0.0001972,2]
[346188360,1734769856919,-184.83037098,0.0001972,2]
[346188361,1734769856928,-500.0,0.0001972,2]
[346188362,1734769856938,-500.20868162,0.0001972,2]
[346188363,1734769856947,-500.0,0.0001972,2]
[346188364,1734769856956,-500.0,0.0001972,2]
[346188365,1734769856965,-502.82444635,0.0001972,2]
[346188366,1734769856975,-500.0,0.0001972,2]
[346188367,1734769856984,-500.0,0.0001972,2]
[346188368,1734769856994,-500.0,0.0001972,2]
[346188369,1734769857004,-500.0,0.0001972,2]
[346188370,1734769857014,-500.0,0.0001972,2]
[346188371,1734769857024,-500.0,0.0001972,2]
[346188372,1734769857034,-500.0,0.0001972,2]
[346188373,1734769857048,-500.0,0.0001972,2]
[346188374,1734769857058,-500.0,0.0001972,2]
[346188375,1734769857067,-500.0,0.0001972,2]
[346188376,1734769857078,-500.0,0.0001972,2]
[346188377,1734769857088,-520.73,0.0001972,2]
[346188378,1734769857098,-500.0,0.0001972,2]
[346188379,1734769857107,-500.0,0.0001972,2]
[346188380,1734769857118,-500.0,0.0001972,2]
[346188381,1734769857128,-500.0,0.0001972,2]
[346188382,1734769857138,-500.0,0.0001972,2]
[346188383,1734769857147,-500.0,0.0001972,2]
[346188384,1734769857157,-500.0,0.0001972,2]
[346188385,1734769857167,-500.0,0.0001972,2]
[346188386,1734769857176,-500.0,0.0001972,2]
[346188387,1734769857186,-573.6524261,0.0001972,2]
[346188388,1734769857195,-500.0,0.0001972,2]
[346188389,1734769857204,-500.0,0.0001972,2]
[346188390,1734769857214,-500.0,0.0001972,2]
[346188391,1734769857223,-522.23566969,0.0001972,2]
[346188392,1734769857233,-596.09283339,0.0001972,2]
[346188393,1734769857242,-500.0,0.0001972,2]
[346188394,1734769857253,-519.06757504,0.0001972,2]
[346188395,1734769857262,-500.0,0.0001972,2]
[346188396,1734769857273,-500.0,0.0001972,2]
[346188397,1734769857285,-515.57763035,0.0001972,2]
[346188398,1734769857295,-500.0,0.0001972,2]
[346188399,1734769857305,-500.0,0.0001972,2]
[346188400,1734769857315,-500.0,0.0001972,2]
[346188401,1734769857325,-500.0,0.0001972,2]
[346188402,1734769857334,-500.0,0.0001972,2]
[346188403,1734769857343,-500.0,0.0001972,2]
[346188404,1734769857353,-500.0,0.0001972,2]
[346188405,1734769857362,-500.0,0.0001972,2]
[346188406,1734769857372,-500.0,0.0001972,2]
[346188407,1734769857381,-500.0,0.0001972,2]
[346188408,1734769857390,-500.0,0.0001972,2]
[346188409,1734769857400,-500.0,0.0001972,2]
[346188410,1734769857409,-815.52,0.0001972,2]
[346188411,1734769857419,-500.0,0.0001972,2]
[346188412,1734769857428,-500.0,0.0001972,2]
[346188413,1734769857439,-500.0,0.0001972,2]
[346188414,1734769857448,-500.0,0.0001972,2]
[346188415,1734769857457,-500.0,0.0001972,2]
[346188416,1734769857466,-500.0,0.0001972,2]
[346188417,1734769857475,-500.0,0.0001972,2]
[346188418,1734769857484,-505.95316153,0.0001972,2]
[346188419,1734769857494,-500.0,0.0001972,2]
[346188420,1734769857505,-500.0,0.0001972,2]
[346188421,1734769857514,-500.0,0.0001972,2]
[346188422,1734769857524,-500.0,0.0001972,2]
[346188423,1734769857534,-500.0,0.0001972,2]
[346188424,1734769857543,-500.0,0.0001972,2]
[346188425,1734769857552,-500.0,0.0001972,2]
[346188426,1734769857562,-500.0,0.0001972,2]
[346188427,1734769857571,-500.0,0.0001972,2]
[346188428,1734769857580,-500.0,0.0001972,2]
[346188429,1734769857589,-642.19730219,0.0001972,2]
[346188430,1734769857598,-500.0,0.0001972,2]
[346188431,1734769857607,-346.36642821,0.0001972,2]
[346188432,1734769857617,-500.0,0.0001972,2]
[346188433,1734769857626,-500.0,0.0001972,2]
[346188434,1734769857636,-500.0,0.0001972,2]
[346188435,1734769857645,-500.0,0.0001972,2]
[346188436,1734769857655,-500.0,0.0001972,2]
[346188437,1734769857664,-500.0,0.0001972,2]
[346188438,1734769857674,-304.81777258,0.0001972,2]
[346188439,1734769857684,-690.78,0.0001972,2]
[346188440,1734769857694,-500.0,0.0001972,2]
[346188441,1734769857704,-500.0,0.0001972,2]
[346188442,1734769857713,-500.0,0.0001972,2]
[346188443,1734769857723,-500.0,0.0001972,2]
[346188444,1734769857734,-500.0,0.0001972,2]
[346188445,1734769857744,-500.0,0.0001972,2]
[346188446,1734769857756,-500.0,0.0001972,2]
[346188447,1734769857766,-500.0,0.0001972,2]
[346188448,1734769857776,-500.0,0.0001972,2]
[346188449,1734769857786,-551.42643787,0.0001972,2]
[346188450,1734769857796,-500.0,0.0001972,2]
[346188451,1734769857806,-500.0,0.0001972,2]
[346188452,1734769857815,-500.0,0.0001972,2]
[346188453,1734769857825,-500.0,0.0001972,2]
[346188454,1734769857835,-500.0,0.0001972,2]
[346188455,1734769857844,-500.0,0.0001972,2]
[346188456,1734769857853,-500.0,0.0001972,2]
[346188457,1734769857863,-5000.0,0.0001972,2]
[346188458,1734769857872,-500.0,0.0001972,2]
[346188459,1734769857881,-500.0,0.0001972,2]
[346188460,1734769857890,-500.0,0.0001972,2]
[346188461,1734769857900,-500.0,0.0001972,2]
[346188462,1734769857909,-718.77,0.0001972,2]
[346188463,1734769857919,-500.0,0.0001972,2]
[346188464,1734769857928,-502.56453077,0.0001972,2]
[346188465,1734769857937,-500.0,0.0001972,2]
[346188466,1734769857946,-500.0,0.0001972,2]
[346188467,1734769857956,-632.48,0.0001972,2]
[346188468,1734769857966,-500.0,0.0001972,2]
[346188469,1734769857975,-500.0,0.0001972,2]
[346188470,1734769857985,-500.0,0.0001972,2]
[346188471,1734769857995,-743.32,0.0001972,2]
[346188472,1734769858009,-500.0,0.0001972,2]
[346188473,1734769858018,-500.0,0.0001972,2]
[346188474,1734769858027,-151.0,0.0001972,2]
[346188475,1734769858037,-549.62,0.0001972,2]
[346188476,1734769858051,-151.0,0.0001972,2]
[346188477,1734769858060,-500.0,0.0001972,2]
[346188478,1734769858070,-500.0,0.0001972,2]
[346188479,1734769858079,-151.0,0.0001972,2]
[346188480,1734769858089,-151.0,0.0001972,2]
[346188481,1734769858099,-500.0,0.0001972,2]
[346188482,1734769858108,-787.15,0.0001972,2]
[346188483,1734769858119,-500.0,0.0001972,2]
[346188484,1734769858128,-500.0,0.0001972,2]
[346188485,1734769858139,-1315.85,0.0001972,2]
[346188486,1734769858148,-500.0,0.0001972,2]
[346188487,1734769858157,-500.0,0.0001972,2]
[346188488,1734769858167,-151.0,0.0001972,2]
[346188489,1734769858176,-500.0,0.0001972,2]
[346188490,1734769858186,-151.0,0.0001972,2]
[346188491,1734769858195,-500.0,0.0001972,2]
[346188492,1734769858204,-500.0,0.0001972,2]
[346188493,1734769858213,-500.0,0.0001972,2]
[346188494,1734769858223,-500.0,0.0001972,2]
[346188495,1734769858232,-500.0,0.0001972,2]